{"text_format":"1","workbook":"xlsx","n_sheets":2,"sheets":["Kennzahlen","Tabelle1"],"not_rendered":{"charts":0,"images":1,"macros":1,"external_links":0,"defined_names":3,"comments":0,"pivot_tables":0},"unopened":[],"bounds":{"document_bytes":16777216,"sheet_cells":100000,"rows_first":2000,"rows_last":500,"rows_between":2000,"halvings":0,"cell_chars":16384,"cell_head_chars":4096},"cells_cut":0,"cells_raw":0,"read":"whole","date_system":"1900"}

{"sheet":"Kennzahlen","index":0,"n_rows":189,"n_cols":8,"rows_kept":189,"cut":false,"hidden":false,"merged":[[171,4,171,6],[148,0,148,7],[160,0,160,7],[133,0,133,7],[119,0,119,7],[126,0,126,7],[5,0,5,7],[7,3,7,7],[7,0,7,2],[91,0,91,7],[68,0,68,7],[46,0,48,7],[57,0,59,7],[71,0,73,7],[82,0,84,7],[32,0,32,7],[35,0,37,7],[38,0,38,7],[188,4,188,5],[172,0,172,7],[9,0,9,7],[10,0,10,7],[171,0,171,3],[94,0,96,7],[109,0,111,7],[122,0,124,7],[136,0,138,7],[151,0,153,7],[163,0,165,7],[22,0,22,7],[24,0,24,7],[106,0,106,7],[61,0,61,7],[98,0,98,7],[176,0,176,2],[182,4,182,6],[186,4,186,5],[187,4,187,5],[184,0,184,2],[182,0,182,2],[183,4,183,6]]}
[]
[]
[]
[]
[]
["Calcul d'indicateurs pour l'obtention du statut d'AEO"]
[]
["Nom de l’entreprise:"]
[]
["Les indicateurs suivants doivent être remplis conformément à l'exemple ci-dessous (Saisie dans les champs bleus). Tous les postes du bilan, du compte de résultats et du compte des flux de fonds nécessaires à la détermination des indicateurs doivent figurer dans le calcul. Les documents utilisés pour le calcul (bilan, compte de résultats et compte des flux de fonds) doivent être remis à l'office procédant à l'examen afin qu'il puisse retracer les calculs à l'aide des documents. Les rapports de révision des trois derniers exercices doivent par ailleurs être joints. Le document requiert la double signature, un des signataires au moins devant être habilité à signer au sens du registre du commerce. "]
["Les indicateurs sont valables pour les années suivantes (veuillez les remplir en commençant par l'année la plus récente;\npar exemple: 2016, 2015, 2014, 2013):"]
["Années"]
[]
["Exemple"]
[]
["Quick Ratio",null,null,null,2016,2015,2014,2013]
["Minimum",1,null,"Actifs circulants",8533158,10925616,18618701.289999999,15833463.43]
["Médiane",0.98050000000000004,null,"Stocks",1115200,1112600,1138900,1450360]
["Moyenne arithmétique",1.0835999999999999,null,"Capitaux de tiers à court terme",3768762,5782098,15934344.279999999,16478263.09]
[null,null,null,null,{"$f":"((E17-E18)/E19)","v":1.9682744625423414},{"$f":"((F17-F18)/F19)","v":1.6971376133714786},{"$f":"((G17-G18)/G19)","v":1.0969890560190658},{"$f":"((H17-H18)/H19)","v":0.87285312483744304}]
[]
[]
["Saisie dans les champs bleus"]
[]
["Liquidité"]
[]
["Quick Ratio",null,null,null,{"$f":"$E$12","v":0},{"$f":"$F$12","v":0},{"$f":"$G$12","v":0},{"$f":"$H$12","v":0}]
["Minimum",1,null,"Actifs circulants"]
["Médiane",0.98050000000000004,null,"Stocks"]
["Moyenne arithmétique",1.0835999999999999,null,"Capitaux de tiers à court terme"]
[null,null,null,null,{"$f":"IFERROR(((E28-E29)/E30),0)","v":0},{"$f":"IFERROR(((F28-F29)/F30),0)","v":0},0,0]
[]
["Remarque: pour les entreprises qui peuvent transformer rapidement leurs stocks en argent (par ex. entreprises actives dans le commerce),\nla valeur peut être légèrement inférieure."]
[]
["Évaluation:"]
[]
[]
[]
[]
[]
["Ratio de liquidité générale",null,null,null,{"$f":"+E27","v":0},{"$f":"+F27","v":0},{"$f":"+G27","v":0},{"$f":"+H27","v":0}]
["Minimum",1.5,null,"Actifs circulants",{"$f":"E28","v":0},{"$f":"F28","v":0},{"$f":"G28","v":0},{"$f":"H28","v":0}]
["Médiane",1.24,null,"Capitaux de tiers à court terme",{"$f":"E30","v":0},{"$f":"F30","v":0},{"$f":"G30","v":0},{"$f":"H30","v":0}]
["Moyenne arithmétique",1.3129999999999999,null,null,{"$f":"IFERROR((E42/E43),0)","v":0},{"$f":"IFERROR((F42/F43),0)","v":0},0,0]
[]
["Évaluation:"]
[]
[]
[]
[]
["Cash-Flow (AFD light)",null,null,null,{"$f":"+E41","v":0},{"$f":"+F41","v":0},{"$f":"+G41","v":0},{"$f":"+H41","v":0}]
["Minimum",0,null,"Bénéfice annuel"]
[null,null,null," + Amortissements"]
[null,null,null," + Provisions"]
[null,null,null,null,{"$f":"+E52+E53+E54","v":0},{"$f":"+F52+F53+F54","v":0},0,0]
[]
["Évaluation:"]
[]
[]
[]
[]
["Structure de la fortune"]
[]
["Degré de couverture des immobilisations I",null,null,null,{"$f":"+E51","v":0},{"$f":"+F51","v":0},{"$f":"+G51","v":0},{"$f":"+H51","v":0}]
["Minimum",0.5,null,"Capital propre"]
["Médiane",0.625,null,"Actifs immobilisés"]
["Moyenne arithmétique",0.746,null,null,{"$f":"IFERROR((E65/E66),0)","v":0},{"$f":"IFERROR((F65/F66),0)","v":0},0,0]
[]
["Remarque: si cet indicateur est inférieur à 50 %, il y a endettement."]
[]
["Évaluation:"]
[]
[]
[]
[]
["Degré de couverture des immobilisations II",null,null,null,{"$f":"+E64","v":0},{"$f":"+F64","v":0},{"$f":"+G64","v":0},{"$f":"+H64","v":0}]
["Minimum",1,null,"Capital propre",{"$f":"E65","v":0},{"$f":"F65","v":0},{"$f":"G65","v":0},{"$f":"H65","v":0}]
["Médiane",1.1739999999999999,null,"Capitaux de tiers à long terme"]
["Moyenne arithmétique",1.3547,null,"Actifs immobilisés",{"$f":"E66","v":0},{"$f":"F66","v":0},{"$f":"G66","v":0},{"$f":"H66","v":0}]
[null,null,null,null,{"$f":"IFERROR(((E77+E78)/E79),0)","v":0},{"$f":"IFERROR(((F77+F78)/F79),0)","v":0},0,0]
[]
["Évaluation:"]
[]
[]
[]
[]
["Taux d'immobilisation",null,null,null,{"$f":"+E76","v":0},{"$f":"+F76","v":0},{"$f":"+G76","v":0},{"$f":"+H76","v":0}]
[null,null,null,"Actifs immobilisés",{"$f":"E79","v":0},{"$f":"F79","v":0},{"$f":"G79","v":0},{"$f":"H79","v":0}]
[null,null,null,"Actifs totaux"]
[null,null,null,null,{"$f":"IFERROR((E88/E89),0)","v":0},{"$f":"IFERROR((F88/F89),0)","v":0},0,0]
[]
["Remarque: plus le taux d'actifs immobilisés à long terme est élevé, plus une entreprise est sensible aux fluctuations conjoncturelles et plus longue est, tendanciellement, la durée d'amortissement des investissements effectués. En revanche, une part relativement importante d'actifs circulants engendre une pression constante en faveur d'une gestion efficiente des stocks et des débiteurs. Les stocks en particulier sont soumis à de nombreuses influences, telles que chute des prix inattendue, nature périssable ou changement de comportement des consommateurs."]
[]
["Évaluation:"]
[]
[]
[]
[]
["Sécurité"]
[]
["Degré de financement propre",null,null,null,{"$f":"+E87","v":0},{"$f":"+F87","v":0},{"$f":"+G87","v":0},{"$f":"+H87","v":0}]
["Minimum",0.25,null,"Capital propre",{"$f":"E77","v":0},{"$f":"F77","v":0},{"$f":"G77","v":0},{"$f":"H77","v":0}]
["Maximum",0.5,null,"Capital total",{"$f":"E89","v":0},{"$f":"F89","v":0},{"$f":"G89","v":0},{"$f":"H89","v":0}]
["Médiane",0.313,null,null,{"$f":"IFERROR((E102/E103),0)","v":0},{"$f":"IFERROR((F102/F103),0)","v":0},0,0]
["Moyenne arithmétique",0.32]
[]
["Remarque: plus le taux d'immobilisation est important, plus cet indicateur doit être élevé, car l'entreprise a moins de flexibilité pour réagir aux changements."]
[]
["Évaluation:"]
[]
[]
[]
[]
["Degré d'autofinancement",null,null,null,{"$f":"+E101","v":0},{"$f":"+F101","v":0},{"$f":"+G101","v":0},{"$f":"+H101","v":0}]
[null,null,null,"Réserve de bénéfices"]
[null,null,null,"Report de bénéfices"]
[null,null,null,"Capital propre",{"$f":"E77","v":0},{"$f":"F77","v":0},{"$f":"G77","v":0},{"$f":"H77","v":0}]
[null,null,null,null,{"$f":"IFERROR(((E115+E116)/E117),0)","v":0},{"$f":"IFERROR(((F115+F116)/F117),0)","v":0},0,0]
[]
["Remarque: cet indicateur montre dans quelle mesure une entreprise est parvenue, après distribution d'un dividende, à investir dans sa propre croissance."]
[]
["Évaluation:"]
[]
[]
[]
[]
["Rentabilité"]
[]
["Marge opérationnelle (ROS)",null,null,null,{"$f":"+E114","v":0},{"$f":"+F114","v":0},{"$f":"+G114","v":0},{"$f":"+H114","v":0}]
[null,null,null,"Bénéfice annuel",{"$f":"E52","v":0},{"$f":"F52","v":0},{"$f":"G52","v":0},{"$f":"H52","v":0}]
["> 5% (selon le secteur)",null,null,"Produit brut (chiffre d'affaires)"]
[null,null,null,null,{"$f":"IFERROR((E130/E131),0)","v":0},{"$f":"IFERROR((F130/F131),0)","v":0},0,0]
[]
["Remarque: cet indicateur montre le rapport entre le résultat et le chiffre d'affaires."]
[]
["Évaluation:"]
[]
[]
[]
[]
["Marge EBIT",null,null,null,{"$f":"+E129","v":0},{"$f":"+F129","v":0},{"$f":"+G129","v":0},{"$f":"+H129","v":0}]
["Minimum",0.05,null,"Bénéfice annuel",{"$f":"E52","v":0},{"$f":"F52","v":0},{"$f":"G52","v":0},{"$f":"H52","v":0}]
["Maximum",0.09,null,"Steuern"]
[null,null,null,"Charges financières"]
[null,null,null,"Revenus financiers"]
[null,null,null,"Produit brut (chiffre d'affaires)",{"$f":"E131","v":0},{"$f":"F131","v":0},{"$f":"G131","v":0},{"$f":"H131","v":0}]
[null,null,null,null,{"$f":"IFERROR(((SUM(E142:E144)-E145)/E146),0)","v":0},{"$f":"IFERROR(((SUM(F142:F144)-F145)/F146),0)","v":0},0,0]
[]
["Remarque: les valeurs indicatives valent pour les établissements commerciaux et industriels. Il n'existe pas de valeur indicative à caractère général pour les entreprises de services."]
[]
["Évaluation:"]
[]
[]
[]
[]
["Rendement du capital propre (ROE)",null,null,null,{"$f":"+E141","v":0},{"$f":"+F141","v":0},{"$f":"+G141","v":0},{"$f":"+H141","v":0}]
["Médiane",0.17649999999999999,null,"Bénéfice annuel",{"$f":"E52","v":0},{"$f":"F52","v":0},{"$f":"G52","v":0},{"$f":"H52","v":0}]
["Moyenne arithmétique",0.1777,null,"Capital propre moyen",{"$f":"SUM($E$65:$H$65)/4","v":0},{"$f":"SUM($E$65:$H$65)/4","v":0},0,0]
[null,null,null,null,{"$f":"IFERROR((E157/E158),0)","v":0},{"$f":"IFERROR((F157/F158),0)","v":0},0,0]
[]
["Remarque: les valeurs moyennes diffèrent fortement d'un secteur à l'autre. Secteur de la restauration, énergie et métallurgie: 2 à 5 % / commerce de détail, immeubles, électrotechnique: 8 % / Commerce de gros, industrie pharmaceutique, denrées alimentaires, horlogerie: 12 % / conseil 20 %."]
[]
["Évaluation:"]
[]
[]
[]
[null,null,null,"\n"]
[]
[]
["Compte PCD disponible"]
[]
["Si oui, indiquer le ou les numéros de compte PCD:  ",null,null,null,"Compte PCD"]
[]
[]
["Les soussignés attestent que tous les indicateurs ont été calculés correctement et conformément à la vérité."]
[]
["Locaité, 1.1.2099"]
[]
[]
[]
[]
[]
["Prénom et nom du signataire",null,null,null,"Prénom et nom du signataire"]
["Questionnaire rempli par",null,null,null,"Habilité à signer au sens du registre"]
["Fonction",null,null,null,"du commerce"]
[]
["Coordonnées pour les questions:",null,null,"Tél.","Saisir"]
[null,null,null,"Fax","Saisir"]
[null,null,null,"Courriel:","Saisir"]

{"sheet":"Tabelle1","index":1,"n_rows":2,"n_cols":1,"rows_kept":2,"cut":false,"hidden":true,"merged":[]}
["ja"]
["nein"]